bitfinex-derivatives/quotes_SOLF0:USTF0_20250623
["timestamp","ask_amount","ask_price","bid_price","bid_amount"]
[1750662387940,246.18,134.63,134.6,7.4266]
[1750662388542,246.18,134.63,134.56,8.82291847]
[1750662389341,253.6056,134.63,134.52,4.9025]
[1750662389545,253.6056,134.63,134.57,8.82291847]
[1750662389847,253.6056,134.63,134.59,7.4274]
[1750662390536,7.4261,134.62,134.59,7.4274]
[1750662391035,246.18,134.63,134.59,7.4274]
[1750662391243,253.6059,134.63,134.59,7.4274]
[1750662391442,246.18,134.63,134.58,7.428]
[1750662391638,8.82291847,134.61,134.51,8.82291847]
[1750662391846,7.4283,134.58,134.51,8.82291847]
[1750662392149,169.32,134.61,134.55,8.82291847]
[1750662392347,245.2792,134.62,134.56,8.82291847]
[1750662392551,245.2792,134.62,134.56,7.4292]
[1750662392757,7.4268,134.61,134.54,8.82291847]
[1750662392944,245.2792,134.62,134.54,8.82291847]
[1750662393142,245.2792,134.62,134.57,7.4288]
[1750662393552,7.427,134.61,134.57,7.4288]
[1750662393746,245.2792,134.62,134.56,8.82291847]
[1750662394149,73.4,134.62,134.58,8.82291847]
[1750662394352,169.66,134.65,134.51,75.7255]
[1750662394548,169.66,134.65,134.58,8.82291847]
[1750662394951,177.0845,134.65,134.58,8.82291847]
[1750662395449,177.0845,134.65,134.6,7.4271]
[1750662396549,177.0845,134.65,134.61,7.4265]
[1750662398242,169.66,134.65,134.61,7.4265]
[1750662398551,169.12,134.65,134.61,7.4265]
[1750662398948,169.12,134.65,134.6,7.427]
[1750662399542,169.12,134.65,134.59,8.82291847]
[1750662399746,14.25685139,134.64,134.56,8.82291847]
[1750662399946,5.43393292,134.64,134.56,8.82291847]
[1750662400141,73.4,134.66,134.6,8.82291847]
[1750662400346,5.44291941,134.65,134.6,8.82291847]
[1750662400551,12.86791941,134.65,134.6,8.82291847]
[1750662400856,12.86791941,134.65,134.59,8.82291847]
[1750662401048,5.44291941,134.65,134.57,11.18341847]
[1750662401252,5.44291941,134.65,134.59,8.82291847]
[1750662401453,242.28,134.66,134.59,8.82291847]
[1750662401755,73.4,134.66,134.61,8.82291847]
[1750662402253,4.642,134.68,134.63,8.82291847]
[1750662402557,5.45584641,134.68,134.65,8.82291847]
[1750662402744,8.24475668,134.69,134.65,16.24711847]
[1750662402949,5.45584641,134.69,134.65,16.24711847]
[1750662403156,5.45584641,134.69,134.65,7.4242]
[1750662403348,8.24478843,134.69,134.64,7.4248]
[1750662403550,5.45584641,134.68,134.58,4.9107]
[1750662403750,12.87884641,134.68,134.63,16.24801847]
[1750662403949,5.45584641,134.68,134.63,8.82291847]
[1750662404253,8.24478843,134.67,134.63,8.82291847]
[1750662404459,5.45584641,134.66,134.64,7.4248]
[1750662404652,2.78894202,134.67,134.63,8.82291847]
[1750662404856,5.4734112,134.66,134.63,8.82291847]
[1750662405051,2.79826274,134.67,134.63,8.82291847]
[1750662405253,5.47046614,134.66,134.63,8.82291847]
[1750662405462,169.96,134.68,134.64,7.425]
[1750662405754,8.2687483,134.67,134.64,7.425]
[1750662405952,5.47048556,134.66,134.64,7.425]
[1750662406151,2.79826274,134.66,134.63,8.82291847]
[1750662406356,5.47748769,134.65,134.63,8.82291847]
[1750662406559,2.79826274,134.66,134.63,8.82291847]
[1750662406860,5.48577043,134.65,134.64,7.425]
[1750662407557,177.3829,134.68,134.64,7.425]
[1750662407860,13.74871983,134.67,134.64,7.425]
[1750662408049,8.29169133,134.66,134.64,7.425]
[1750662408256,5.48590155,134.65,134.64,7.425]
[1750662408960,5.48590155,134.65,134.63,7.4255]
[1750662409158,5.48590155,134.65,134.62,8.82291847]
[1750662409159,2.80578978,134.66,134.62,8.82291847]
[1750662409357,5.48441427,134.65,134.62,8.82291847]
[1750662409560,2.80578978,134.66,134.64,7.4246]
[1750662409756,5.48440118,134.65,134.64,7.4246]
[1750662410061,2.80578978,134.66,134.64,7.4246]
[1750662410260,2.80202687,134.66,134.64,7.4246]
[1750662410561,2.80202687,134.67,134.64,7.4246]
[1750662410757,8.23686218,134.66,134.64,7.4246]
[1750662410957,8.23686218,134.66,134.62,8.82291847]
[1750662410958,2.80202687,134.66,134.63,7.4254]
[1750662411758,2.80202687,134.67,134.64,8.82291847]
[1750662412063,5.43390488,134.66,134.62,8.82291847]
[1750662412361,2.80167235,134.67,134.62,8.82291847]
[1750662412559,5.43207051,134.66,134.62,8.82291847]
[1750662412760,12.82768969,134.68,134.64,7.425]
[1750662412961,8.23217248,134.67,134.64,7.425]
[1750662413158,5.43093681,134.66,134.64,8.82291847]
[1750662413855,2.80116286,134.67,134.63,8.82291847]
[1750662414056,5.43081508,134.66,134.63,8.82291847]
[1750662414258,2.80116286,134.67,134.63,8.82291847]
[1750662414259,12.82768969,134.68,134.65,7.4244]
[1750662414454,8.23421572,134.67,134.65,7.4244]
[1750662414653,5.43228353,134.66,134.65,7.4244]
[1750662415158,5.43228353,134.67,134.66,7.4239]
[1750662415564,810.18,134.7,134.65,8.82291847]
[1750662415565,8.23415833,134.68,134.65,8.82291847]
[1750662415765,8.23415833,134.69,134.66,7.4235]
[1750662416067,8.23415833,134.68,134.66,7.4235]
[1750662416253,15.65478537,134.69,134.66,7.4235]
[1750662416455,5.43061057,134.68,134.66,7.4235]
[1750662416863,5.43061057,134.68,134.65,16.24711847]
[1750662417058,5.43061057,134.68,134.65,8.82291847]
[1750662417257,15.65468537,134.69,134.65,8.82291847]
[1750662417862,15.65499958,134.69,134.65,8.82291847]
[1750662418167,15.65499958,134.69,134.64,8.82291847]
[1750662418362,15.65499958,134.69,134.64,5.78710015]
[1750662418570,8.23279958,134.69,134.66,7.4236]
[1750662419266,8.23015627,134.69,134.66,7.4236]
[1750662420164,8.23015627,134.69,134.67,7.4231]
[1750662420370,2.79975143,134.69,134.67,7.4231]
[1750662420572,8.2292085,134.69,134.61,5.78710015]
[1750662420772,15.6518085,134.69,134.58,4.9107]
[1750662421166,15.6518085,134.69,134.64,5.78710015]
[1750662421369,8.2292085,134.69,134.64,5.78710015]
[1750662421566,9.23462248,134.73,134.66,5.78710015]
[1750662421868,8.22803895,134.73,134.7,5.78710015]
[1750662422174,69.26,134.74,134.7,5.78710015]
[1750662423073,641.38,134.77,134.72,5.78710015]
[1750662423465,648.7981,134.77,134.73,7.4195]
[1750662423663,641.38,134.77,134.73,13.20660015]
[1750662423864,641.38,134.77,134.72,5.78710015]
[1750662424073,648.7982,134.77,134.73,7.4199]
[1750662424273,641.38,134.77,134.72,5.78710015]
[1750662424671,647.16710015,134.77,134.71,5.78710015]
[1750662424870,814.04710015,134.77,134.7,4.6243]
[1750662425075,7.4203,134.73,134.69,7.4222]
[1750662425474,75.02710015,134.72,134.64,2.3704]
[1750662425669,75.02710015,134.72,134.63,4.7902]
[1750662425869,75.02710015,134.72,134.64,5.78710015]
[1750662426069,75.02710015,134.72,134.65,7.4243]
[1750662426070,7.4219,134.7,134.65,7.4243]
[1750662426273,166.92,134.7,134.65,7.4243]
[1750662426576,7.1806,134.73,134.63,13.60906259]
[1750662426772,236.3,134.72,134.63,11.25806259]
[1750662426971,236.3,134.72,134.63,2.4392]
[1750662427171,8.81886259,134.71,134.63,11.25806259]
[1750662427371,7.422,134.7,134.65,7.424]
[1750662427969,7.422,134.7,134.63,8.81886259]
[1750662428375,7.422,134.7,134.62,2.3704]
[1750662428576,7.422,134.7,134.65,7.424]
[1750662428776,7.4223,134.69,134.65,7.424]
[1750662429072,14.24167965,134.71,134.64,7.4249]
[1750662429274,14.24167965,134.71,134.62,8.81886259]
[1750662429275,7.4226,134.69,134.62,8.81886259]
[1750662429875,7.4218,134.7,134.64,8.81886259]
[1750662430073,7.4218,134.7,134.66,7.4235]
[1750662430275,236.02,134.71,134.66,7.4235]
[1750662430478,236.02,134.71,134.64,8.81886259]
[1750662430678,236.02,134.71,134.67,7.4229]
[1750662430980,243.4415,134.71,134.67,7.4229]
[1750662431177,7.4215,134.71,134.67,7.4229]
[1750662431983,235.92,134.72,134.64,8.81886259]
[1750662432690,7.4213,134.71,134.64,8.81886259]
[1750662433387,243.3408,134.72,134.68,7.4227]
[1750662433582,235.92,134.72,134.66,8.81886259]
[1750662433788,235.92,134.72,134.6,66.6078]
[1750662433789,235.92,134.72,134.68,8.81886259]
[1750662434586,235.92,134.72,134.7,7.4216]
[1750662434984,235.92,134.72,134.68,8.81886259]
[1750662435380,235.92,134.72,134.7,7.4216]
[1750662435590,235.92,134.72,134.68,8.81886259]
[1750662436193,11.15456259,134.76,134.68,8.81886259]
[1750662436194,165.86,134.75,134.68,8.81886259]
[1750662436485,165.86,134.75,134.66,4.6094]
[1750662436486,7.42,134.74,134.7,7.4216]
[1750662436688,7.42,134.74,134.69,8.81886259]
[1750662436888,7.42,134.74,134.71,7.4211]
[1750662437282,7.42,134.73,134.69,8.81886259]
[1750662437583,165.82,134.75,134.7,7.4214]
[1750662437888,173.06,134.74,134.7,7.4214]
[1750662439082,7.4201,134.73,134.69,7.422]
[1750662439287,165.64,134.74,134.67,8.81886259]
[1750662439490,17.03871583,134.73,134.66,8.81886259]
[1750662439683,7.4215,134.71,134.67,7.423]
[1750662439884,8.21985324,134.73,134.66,8.81886259]
[1750662440082,11.09056259,134.72,134.64,8.81886259]
[1750662440282,7.422,134.7,134.66,7.4235]
[1750662442892,67.1,134.71,134.64,8.81886259]
[1750662443485,7.4218,134.7,134.66,7.4236]
[1750662444292,74.5213,134.71,134.67,7.4232]
[1750662444998,67.1,134.71,134.68,7.4226]
[1750662445694,74.5212,134.71,134.67,7.4231]
[1750662445992,67.1,134.71,134.65,8.81886259]
[1750662446395,74.5212,134.71,134.67,7.423]
[1750662446595,74.5212,134.71,134.65,8.81886259]
[1750662446796,67.1,134.71,134.65,8.81886259]
[1750662446996,67.1,134.71,134.68,7.4224]
[1750662447197,67.1,134.71,134.62,2.4852]
[1750662447198,67.1,134.71,134.67,8.81886259]
[1750662447799,67.1,134.71,134.7,7.4217]
[1750662447998,67.1,134.71,134.67,8.81886259]
[1750662448194,67.1,134.71,134.69,13.20533827]
[1750662448395,67.1,134.71,134.69,5.78353827]
[1750662448790,67.1,134.71,134.69,13.20553827]
[1750662450497,67.1,134.71,134.7,7.4217]
[1750662450697,67.1,134.71,134.69,5.78353827]
[1750662450898,234.94353827,134.75,134.69,5.78353827]
[1750662451099,7.4203,134.73,134.69,13.20543827]
[1750662452393,8.23794202,134.74,134.69,13.20543827]
[1750662452889,7.4203,134.73,134.69,13.20543827]
[1750662453699,10.22103361,134.73,134.69,13.20543827]
[1750662453891,7.4203,134.73,134.69,13.20543827]
[1750662454095,2.80073361,134.73,134.7,7.4216]
[1750662454307,8.24145527,134.73,134.7,7.4216]
[1750662454599,8.24145527,134.74,134.7,7.4216]
[1750662454799,2.80073361,134.73,134.7,7.4216]
[1750662455095,8.24145527,134.73,134.7,7.4216]
[1750662455302,7.4203,134.73,134.69,13.20553827]
[1750662455502,15.66175527,134.73,134.69,13.20553827]
[1750662455800,7.4203,134.73,134.69,13.20553827]
[1750662456001,15.66175527,134.73,134.69,13.20553827]
[1750662456199,7.4203,134.73,134.7,7.4215]
[1750662456400,15.66175527,134.73,134.7,7.4215]
[1750662456600,7.4203,134.73,134.7,7.4215]
[1750662456803,15.66369505,134.73,134.7,7.4215]
[1750662457006,7.4203,134.73,134.7,7.4215]
[1750662457205,15.66369505,134.73,134.7,7.4215]
[1750662457501,7.4203,134.73,134.7,7.4215]
[1750662457701,15.66369505,134.73,134.7,7.4215]
[1750662457901,7.4203,134.73,134.69,13.20553827]
[1750662458102,7.4207,134.72,134.69,13.20553827]
[1750662458403,8.24339505,134.74,134.69,5.78353827]
[1750662458706,8.24339505,134.73,134.69,5.78353827]
[1750662459004,7.4209,134.72,134.69,5.78353827]
[1750662459199,8.24339505,134.73,134.69,13.20553827]
[1750662459397,7.4204,134.73,134.69,13.20553827]
[1750662459604,5.44782765,134.72,134.67,7.4229]
[1750662459903,11.23191951,134.73,134.67,5.78353827]
[1750662460099,7.4221,134.7,134.67,5.78353827]
[1750662460502,7.4214,134.71,134.67,13.20643827]
[1750662460705,15.67674418,134.71,134.67,13.20643827]
[1750662460903,7.4214,134.71,134.67,13.20643827]
[1750662461103,15.67902195,134.71,134.67,13.20643827]
[1750662461305,7.4214,134.71,134.67,13.20643827]
[1750662462199,7.4214,134.71,134.67,5.78353827]
[1750662462200,7.4219,134.7,134.67,5.78353827]
[1750662463701,7.4224,134.69,134.66,5.78353827]
[1750662463902,62.76,134.7,134.64,5.78353827]
[1750662464095,5.78353827,134.67,134.61,5.78353827]
[1750662464300,8.26169307,134.66,134.6,5.78353827]
[1750662464605,8.26169307,134.68,134.62,5.78353827]
[1750662464803,6.9256891,134.75,134.66,5.78800198]
[1750662465098,12.41793195,134.75,134.7,5.78800198]
[1750662465306,5.49224285,134.75,134.7,5.78800198]
[1750662465506,12.91134285,134.75,134.7,13.20960198]
[1750662466205,12.91134285,134.75,134.71,7.421]
[1750662466707,7.4191,134.75,134.71,7.421]
[1750662467405,7.4191,134.75,134.71,13.20900198]
[1750662467597,15.37704285,134.76,134.72,7.4204]
[1750662467798,2.4663,134.76,134.72,13.2014205]
[1750662468206,15.37833681,134.76,134.72,13.2014205]
[1750662468408,7.95963681,134.76,134.72,5.7810205]
[1750662468803,12.91153681,134.77,134.72,5.7810205]
[1750662469007,5.49333681,134.77,134.74,5.7810205]
[1750662469313,5.49333681,134.77,134.74,13.2001205]
[1750662469805,12.91133681,134.77,134.7,2.4254]
[1750662470010,12.91133681,134.77,134.73,5.7810205]
[1750662470406,12.91133681,134.77,134.73,13.2008205]
[1750662470608,5.49333681,134.77,134.73,5.7810205]
[1750662470808,5.49473652,134.77,134.72,5.7810205]
[1750662471008,7.4199,134.74,134.7,5.7810205]
[1750662471209,5.49473652,134.75,134.7,5.7810205]
[1750662471412,5.49473652,134.76,134.7,5.7810205]
[1750662473114,7.4213,134.71,134.67,7.4229]
[1750662473515,12.91543652,134.72,134.68,7.4224]
[1750662473715,12.91722491,134.72,134.68,7.4224]
[1750662474012,5.49652491,134.72,134.67,5.7810205]
[1750662474213,223.96,134.73,134.67,8.81298461]
[1750662474808,223.96,134.73,134.65,2.4094]
[1750662474809,6.9256891,134.75,134.69,8.81298461]
[1750662475009,5.49783265,134.76,134.69,8.81298461]
[1750662475419,5.49783265,134.76,134.73,7.42]
[1750662475717,5.49783265,134.76,134.7,4.7573]
[1750662475915,5.49783265,134.76,134.72,7.4202]
[1750662476307,5.49783265,134.76,134.7,4.7573]
[1750662476511,5.49748732,134.76,134.72,7.4202]
[1750662476814,8.13272846,134.75,134.72,7.4202]
[1750662477018,12.91598732,134.76,134.7,4.7573]
[1750662477019,5.49748732,134.76,134.7,4.7573]
[1750662477216,8.13239608,134.75,134.73,7.4197]
[1750662477516,8.13390581,134.74,134.7,4.7573]
[1750662477719,12.91628732,134.76,134.72,7.4202]
[1750662477912,75.1437891,134.77,134.7,4.7573]
[1750662478219,13.62877046,134.76,134.72,7.42]
[1750662478417,8.13188251,134.75,134.72,7.42]
[1750662478618,5.49688795,134.76,134.72,7.42]
[1750662478820,8.13161562,134.75,134.72,7.42]
[1750662479119,5.49688795,134.76,134.73,7.42]
[1750662479321,8.13159108,134.75,134.73,7.42]
[1750662479620,5.49688795,134.76,134.73,7.42]
[1750662479815,2.73782105,134.75,134.73,7.42]
[1750662480012,5.49654352,134.76,134.73,7.42]
[1750662480218,8.13130469,134.75,134.73,7.42]
[1750662480422,68.2182,134.77,134.73,7.42]
[1750662480626,15.54869517,134.76,134.72,7.4204]
[1750662480922,8.13029517,134.75,134.72,7.4204]
[1750662481327,60.8,134.77,134.72,8.81298461]
[1750662481615,8.12777998,134.76,134.72,8.81298461]
[1750662481823,60.8,134.77,134.72,8.81298461]
[1750662482217,60.8,134.77,134.71,2.3281]
[1750662482417,8.13218148,134.76,134.7,4.7573]
[1750662482616,60.8,134.77,134.7,4.7573]
[1750662482821,8.13035374,134.76,134.71,7.4209]
[1750662483019,8.13067257,134.75,134.71,7.4209]
[1750662483212,14.31605016,134.76,134.68,2.3281]
[1750662483418,15.57941786,134.75,134.68,2.3281]
[1750662483613,14.31605016,134.76,134.69,8.81298461]
[1750662483912,8.15925806,134.75,134.69,8.81298461]
[1750662484120,5.50237021,134.76,134.69,8.81298461]
[1750662484419,15.57878361,134.75,134.71,7.4206]
[1750662484617,5.50237021,134.76,134.71,7.4206]
[1750662484822,8.15944233,134.75,134.71,7.4206]
[1750662485020,8.1597323,134.74,134.7,7.4216]
[1750662485217,8.1597323,134.75,134.7,7.4216]
[1750662485421,8.1597323,134.74,134.7,7.4216]
[1750662485614,2.76433655,134.73,134.69,7.422]
[1750662485818,8.16084402,134.75,134.69,7.422]
[1750662486022,8.16084402,134.74,134.69,7.422]
[1750662486227,15.58093856,134.73,134.68,9.7507]
[1750662486518,5.39747613,134.74,134.67,8.81298461]
[1750662486715,8.1651918,134.73,134.67,8.81298461]
[1750662486915,5.39747613,134.74,134.67,8.81298461]
[1750662487122,8.16477801,134.73,134.67,8.81298461]
[1750662487311,5.39713358,134.74,134.67,8.81298461]
[1750662487512,2.76753182,134.73,134.67,8.81298461]
[1750662487716,8.16213288,134.74,134.67,8.81298461]
[1750662488025,2.76747105,134.73,134.67,8.81298461]
[1750662488219,16.68229787,134.76,134.67,8.81298461]
[1750662488423,8.16259906,134.75,134.67,8.81298461]
[1750662488625,8.16259906,134.74,134.67,8.81298461]
[1750662488922,16.68229787,134.76,134.71,7.421]
[1750662489123,8.16257448,134.75,134.71,7.421]
[1750662489320,8.16257448,134.74,134.71,7.421]
[1750662489527,7.4191,134.75,134.71,7.421]
[1750662489720,8.16166209,134.74,134.71,7.421]
[1750662489914,21.73599787,134.76,134.72,7.4202]
[1750662490114,8.16188056,134.75,134.72,7.4202]
[1750662490324,8.16188056,134.74,134.72,7.4202]
[1750662490524,5.39634259,134.75,134.69,8.81298461]
[1750662490720,5.50589369,134.76,134.7,4.7317]
[1750662490915,8.16088346,134.75,134.7,4.7317]
[1750662491125,5.50590521,134.76,134.7,4.7317]
[1750662491320,5.396102,134.75,134.7,13.54468461]
[1750662491526,8.16124641,134.74,134.71,7.4207]
[1750662491730,5.50590521,134.76,134.7,13.54468461]
[1750662491923,8.16023352,134.75,134.7,13.54468461]
[1750662492124,12.92460521,134.76,134.72,7.4204]
[1750662492424,8.16002626,134.75,134.72,7.4204]
[1750662492627,12.92460521,134.76,134.72,7.4204]
[1750662492922,60.8,134.77,134.72,8.81298461]
[1750662492923,2.76513603,134.75,134.72,8.81298461]
[1750662493124,60.8,134.77,134.72,8.81298461]
[1750662493322,15.69071484,134.76,134.72,8.81298461]
[1750662493527,8.16096791,134.75,134.72,8.81298461]
[1750662493722,12.9253686,134.76,134.72,8.81298461]
[1750662493924,8.16103536,134.75,134.72,16.23328461]
[1750662494120,12.9253686,134.76,134.72,7.4203]
[1750662494324,8.16003029,134.75,134.7,13.54468461]
[1750662494525,12.9253686,134.76,134.72,7.4201]
[1750662494723,8.16003029,134.75,134.72,7.4201]
[1750662494925,5.5066686,134.76,134.7,13.54468461]
[1750662495230,2.76502833,134.75,134.7,13.54468461]
[1750662495528,8.15960005,134.76,134.72,8.81298461]
[1750662495730,60.8,134.77,134.74,7.4195]
[1750662496028,8.15938224,134.76,134.74,7.4195]
[1750662496227,68.2179,134.77,134.74,7.4195]
[1750662496423,8.15931306,134.76,134.74,7.4195]
[1750662496623,60.8,134.77,134.74,7.4195]
[1750662496823,2.76381262,134.76,134.74,7.4195]
[1750662497619,60.8,134.77,134.72,5.7798083]
[1750662497818,8.15949105,134.76,134.7,4.7317]
[1750662498022,5.39250458,134.76,134.72,5.7798083]
[1750662498229,5.39250458,134.76,134.73,7.4196]
[1750662498529,68.2181,134.77,134.72,5.7798083]
[1750662498732,2.76696852,134.76,134.73,7.4197]
[1750662498930,68.2181,134.77,134.73,7.4197]
[1750662499330,8.15947517,134.76,134.74,7.4193]
[1750662499630,5.39250716,134.76,134.74,7.4193]
[1750662499930,2.76644585,134.76,134.74,7.4193]
[1750662500827,10.18494585,134.76,134.73,7.4198]
[1750662501028,2.76644585,134.76,134.74,5.7798083]
[1750662501230,13.66329345,134.8,134.74,5.7798083]
[1750662501428,8.16155299,134.79,134.78,5.7798083]
[1750662501628,71.54339634,134.85,134.75,5.7798083]
[1750662501827,7.4159,134.81,134.78,7.4172]
[1750662502128,8.14788617,134.82,134.78,7.4172]
[1750662502528,15.56318617,134.82,134.78,7.4172]
[1750662503125,8.14788617,134.82,134.79,7.4166]
[1750662503326,21.34239447,134.83,134.79,7.4166]
[1750662503523,15.56258617,134.83,134.79,7.4166]
[1750662503832,8.14788617,134.83,134.77,5.7798083]
[1750662504329,15.56248617,134.83,134.79,7.4163]
[1750662504730,7.4146,134.83,134.79,7.4163]
[1750662505329,15.55151349,134.84,134.79,7.4163]
[1750662505532,15.55151349,134.84,134.8,7.4161]
[1750662505737,8.13731349,134.84,134.77,5.7798083]
[1750662505928,7.4145,134.83,134.77,5.7798083]
[1750662506335,7.4145,134.83,134.79,7.4163]
[1750662506727,7.4151,134.82,134.76,7.0965]
[1750662506924,13.91712179,134.83,134.76,4.6986]
[1750662507333,7.4162,134.8,134.76,12.1166]
[1750662507535,5.7798083,134.81,134.75,5.7798083]
[1750662507928,7.4166,134.8,134.76,7.4181]
[1750662508333,5.7798083,134.81,134.76,7.4181]
[1750662508529,5.7798083,134.81,134.73,58.84]
[1750662508838,5.7798083,134.79,134.73,5.7798083]
[1750662509543,13.1970083,134.79,134.75,7.4188]
[1750662509836,5.7798083,134.79,134.75,7.4188]
[1750662510739,7.4173,134.78,134.74,7.4192]
[1750662511737,5.7798083,134.77,134.71,4.6793]
[1750662512237,5.7798083,134.77,134.71,12.1002]
[1750662512737,7.4191,134.75,134.7,15.4796083]
[1750662512931,62.6998083,134.75,134.68,5.7798083]
[1750662513735,5.7798083,134.73,134.68,5.7798083]
[1750662513941,5.7798083,134.73,134.68,7.4222]
[1750662513942,13.2002083,134.73,134.68,7.4222]
[1750662514142,56.92,134.75,134.69,5.7798083]
[1750662514439,56.92,134.79,134.73,5.7798083]
[1750662514629,56.92,134.79,134.75,7.4186]
[1750662515236,64.3368,134.79,134.75,7.4186]
[1750662515936,56.92,134.79,134.76,7.4183]
[1750662516727,56.92,134.79,134.77,7.4177]
[1750662516932,56.92,134.79,134.75,5.7798083]
[1750662517432,56.92,134.79,134.76,7.4181]
[1750662518133,64.3368,134.79,134.75,13.1985083]
[1750662520336,56.92,134.79,134.73,5.7798083]
[1750662520743,56.92,134.79,134.76,7.4183]
[1750662521142,56.92,134.79,134.75,5.7798083]
[1750662521337,56.92,134.79,134.73,5.7798083]
[1750662521531,64.3372,134.79,134.74,7.4189]
[1750662521735,56.92,134.79,134.74,7.4189]
[1750662522238,56.92,134.79,134.73,13.1997083]
[1750662522444,5.7798083,134.78,134.73,7.4199]
[1750662522644,7.4181,134.77,134.73,7.4199]
[1750662523241,7.4184,134.76,134.72,7.4204]
[1750662523833,7.4178,134.77,134.73,7.4198]
[1750662524038,5.7798083,134.78,134.71,13.0917083]
[1750662524940,213.46,134.79,134.73,5.7798083]
[1750662525137,7.4176,134.78,134.73,13.1996083]
[1750662525443,5.7798083,134.78,134.72,5.7798083]
[1750662525646,5.7798083,134.78,134.72,7.4203]
[1750662526340,5.7798083,134.78,134.71,7.4209]
[1750662526538,5.7798083,134.76,134.71,7.4209]
[1750662526739,7.4191,134.75,134.69,5.7798083]
[1750662526938,7.4191,134.75,134.71,7.4209]
[1750662528445,13.1984083,134.76,134.72,7.4205]
[1750662529143,7.4189,134.75,134.72,7.4205]
[1750662529343,7.4189,134.75,134.71,7.421]
[1750662529544,7.4189,134.75,134.7,5.7798083]
[1750662529545,5.7798083,134.76,134.7,5.7798083]
[1750662529741,13.1985083,134.76,134.7,5.7798083]
[1750662529945,13.1985083,134.76,134.72,7.4204]
[1750662530347,4.922,134.77,134.73,7.4197]
[1750662530548,5.7798083,134.78,134.73,7.4197]
[1750662531353,7.4183,134.77,134.73,7.4197]
[1750662531547,5.7798083,134.78,134.73,7.4197]
[1750662532155,7.4181,134.77,134.73,7.4197]
[1750662532654,13.1974083,134.78,134.72,5.7798083]
[1750662533150,7.4179,134.77,134.71,5.7798083]
[1750662533757,13.1973083,134.78,134.71,5.7798083]
[1750662533958,5.7798083,134.78,134.73,5.7798083]
[1750662534356,13.1971083,134.78,134.74,7.4192]
[1750662535056,5.7798083,134.78,134.75,7.4188]
[1750662535259,5.38923516,134.78,134.75,7.4188]
[1750662535860,5.38923516,134.78,134.74,7.4192]
[1750662535861,12.80663516,134.78,134.74,7.4192]
[1750662536255,5.38923516,134.78,134.74,7.4192]
[1750662536864,12.80653516,134.78,134.74,7.4192]
[1750662537058,7.4173,134.78,134.74,7.4192]
[1750662537862,12.82839458,134.78,134.74,7.4192]
[1750662538058,5.41109458,134.78,134.74,7.4191]
[1750662538361,5.41111083,134.78,134.74,7.4191]
[1750662538562,5.41111083,134.78,134.68,5.7798083]
[1750662538763,7.4176,134.78,134.73,7.4196]
[1750662539263,7.4176,134.78,134.74,7.4195]
[1750662540263,220.877,134.79,134.75,7.4189]
[1750662540465,8.18564926,134.78,134.75,7.4189]
[1750662540664,213.46,134.79,134.75,7.4189]
[1750662540956,8.18567373,134.78,134.73,5.7798083]
[1750662541160,56.92,134.79,134.75,5.7798083]
[1750662542062,56.92,134.79,134.68,5.7798083]
[1750662542063,8.18566183,134.78,134.74,5.7798083]
[1750662542762,8.18566183,134.78,134.75,7.4189]
[1750662542958,5.41081527,134.78,134.74,5.7798083]
[1750662543167,56.92,134.79,134.74,5.7798083]
[1750662543355,64.3368,134.79,134.75,7.4184]
[1750662544163,5.7798083,134.78,134.71,5.7798083]
[1750662544365,8.18568576,134.77,134.71,5.7798083]
[1750662544564,10.19285559,134.77,134.71,5.7798083]
[1750662544764,10.19285559,134.77,134.73,7.4197]
[1750662545263,10.19285559,134.77,134.74,7.4195]
[1750662545465,7.418,134.77,134.74,7.4195]
[1750662546062,7.4175,134.78,134.74,7.4195]
[1750662546259,7.4175,134.78,134.75,7.4188]
[1750662546457,5.41075398,134.78,134.73,5.7798083]
[1750662546662,64.3367,134.79,134.73,5.7798083]
[1750662546862,56.92,134.79,134.73,5.7798083]
[1750662547265,15.60702974,134.78,134.73,5.7798083]
[1750662547465,10.19514727,134.78,134.73,5.7798083]
[1750662547666,10.19514727,134.78,134.75,7.4186]
[1750662548470,2.77754727,134.78,134.76,7.4182]
[1750662549366,2.77754727,134.78,134.75,7.4186]
[1750662549763,5.41483321,134.78,134.75,7.4186]